bitfinex/quotes_BTCUSD_20250226
["timestamp","ask_amount","ask_price","bid_price","bid_amount"]
[1740600497500,0.06470806,84383.0,84365.0,0.09477101]
[1740600497696,0.06470806,84383.0,84365.0,0.29449878]
[1740600497948,0.005,84382.0,84365.0,0.19972777]
[1740600498710,0.05970806,84383.0,84365.0,0.19972777]
[1740600499077,0.00597081,84382.0,84365.0,0.19972777]
[1740600499423,0.01861469,84379.0,84365.0,0.19972777]
[1740600500021,0.01861469,84379.0,84366.0,0.09477101]
[1740600500243,0.01861469,84379.0,84367.0,0.0804]
[1740600502091,0.01961469,84379.0,84369.0,0.00065198]
[1740600502299,0.01961469,84379.0,84378.0,0.00065198]
[1740600502728,0.001,84379.0,84378.0,0.00065198]
[1740600503326,0.5,84394.0,84387.0,0.00065198]
[1740600503327,0.05937955,84393.0,84387.0,0.00065198]
[1740600503566,0.0008478,84417.0,84395.0,0.00065198]
[1740600503689,0.00711841,84416.0,84396.0,0.20203829]
[1740600503896,0.05933673,84415.0,84397.0,0.00065198]
[1740600504732,0.00097167,84416.0,84399.0,0.3]
[1740600504925,0.00097167,84416.0,84405.0,0.00065198]
[1740600505309,0.006,84415.0,84406.0,0.09542299]
[1740600505957,0.00097167,84416.0,84410.0,0.0756]
[1740600506157,0.00597167,84416.0,84410.0,0.0756]
[1740600506988,0.01860563,84415.0,84410.0,0.0756]
[1740600507174,0.01945363,84415.0,84410.0,0.0756]
[1740600507956,0.05937054,84448.0,84410.0,0.0756]
[1740600508156,0.02154742,84447.0,84410.0,0.0756]
[1740600508339,0.05910186,84446.0,84410.0,0.0756]
[1740600508951,0.05910186,84446.0,84410.0,0.0786]
[1740600509151,0.05910186,84446.0,84410.0,0.0756]
[1740600509363,0.00041348,84448.0,84432.0,0.0776]
[1740600509551,0.007,84446.0,84437.0,0.00065198]
[1740600509750,0.007,84446.0,84433.0,0.00948305]
[1740600509751,0.007,84446.0,84443.0,0.00065198]
[1740600510115,0.01877586,84446.0,84445.0,0.30065198]
[1740600510313,0.01877586,84446.0,84445.0,0.6469206]
[1740600511338,0.01177586,84446.0,84445.0,0.63237975]
[1740600511676,0.01577586,84446.0,84445.0,0.63237975]
[1740600511887,0.01577586,84446.0,84445.0,0.6469206]
[1740600512102,0.01177586,84446.0,84445.0,0.6469206]
[1740600512268,0.5,84461.0,84460.0,0.07795198]
[1740600512468,0.5,84461.0,84460.0,0.5922206]
[1740600512469,0.00012402,84461.0,84460.0,0.5922206]
[1740600513981,0.00012402,84461.0,84460.0,1.12248047]
[1740600514182,0.0008478,84499.0,84460.0,1.12248047]
[1740600514183,0.0008478,84499.0,84461.0,0.31454085]
[1740600514387,0.0008478,84499.0,84466.0,0.67952731]
[1740600514724,0.05918118,84498.0,84466.0,0.67952731]
[1740600514930,0.05997167,84489.0,84466.0,0.69406816]
[1740600515208,0.5,84482.0,84466.0,0.69341618]
[1740600515586,0.5,84482.0,84466.0,0.70106816]
[1740600515791,0.5,84482.0,84466.0,0.69406816]
[1740600516550,0.5,84482.0,84466.0,0.49972777]
[1740600516702,0.5,84482.0,84466.0,0.50037975]
[1740600517036,0.5,84482.0,84466.0,0.20037975]
[1740600517728,0.001848,84467.0,84466.0,0.20737975]
[1740600517929,0.001848,84467.0,84466.0,0.20037975]
[1740600518287,0.002848,84467.0,84466.0,0.20637975]
[1740600520014,0.0623061,84467.0,84432.0,0.72998764]
[1740600520360,0.05946367,84465.0,84452.0,0.00012402]
[1740600520490,0.00623061,84466.0,84452.0,0.00012402]
[1740600520491,0.05928252,84463.0,84452.0,0.00012402]
[1740600520891,0.21538614,84463.0,84430.0,0.00065198]
[1740600521209,0.21551004,84463.0,84425.0,0.00065198]
[1740600521447,0.01454085,84460.0,84432.0,0.001]
[1740600521624,0.05995567,84457.0,84432.0,0.001]
[1740600521822,0.05995567,84457.0,84402.0,0.0819]
[1740600521823,0.01454085,84454.0,84402.0,0.0819]
[1740600521985,0.05934846,84452.0,84430.0,0.001]
[1740600522191,0.05934846,84452.0,84416.0,0.00065198]
[1740600522395,0.05997626,84450.0,84416.0,0.00065198]
[1740600522790,0.05997626,84450.0,84432.0,0.001]
[1740600523887,0.05997626,84450.0,84423.0,0.00065198]
[1740600524264,0.05909844,84451.0,84434.0,0.00065198]
[1740600524462,0.02582627,84462.0,84436.0,0.3]
[1740600524463,0.05979101,84462.0,84436.0,0.3]
[1740600524644,0.05952894,84449.0,84436.0,0.3]
[1740600524848,0.05910424,84460.0,84436.0,0.3]
[1740600525251,0.05952894,84449.0,84435.0,0.19972777]
[1740600525867,0.06452894,84449.0,84435.0,0.19972777]
[1740600527092,0.05952894,84449.0,84435.0,0.19972777]
[1740600527450,0.06052894,84449.0,84435.0,0.19972777]
[1740600527654,0.05952894,84449.0,84435.0,0.19972777]
[1740600527958,0.05995881,84447.0,84435.0,0.19972777]
[1740600528153,0.006,84449.0,84435.0,0.19972777]
[1740600528154,0.006,84449.0,84436.0,0.3]
[1740600528351,0.006,84449.0,84437.0,0.00165783]
[1740600528669,0.05937054,84448.0,84437.0,0.00165783]
[1740600528871,0.006,84449.0,84436.0,0.3]
[1740600529078,0.006,84449.0,84446.0,0.00065198]
[1740600529277,0.006,84449.0,84443.0,0.00065198]
[1740600529530,0.006,84449.0,84438.0,0.3825]
[1740600529706,0.006,84449.0,84446.0,0.00065198]
[1740600529945,0.006,84449.0,84442.0,0.00065198]
[1740600530083,0.006,84449.0,84446.0,0.00065198]
[1740600530694,0.006,84449.0,84438.0,0.3825]
[1740600530695,0.03115852,84449.0,84439.0,0.00065198]
[1740600531036,0.03115852,84449.0,84423.0,0.0825]
[1740600531037,0.05937054,84448.0,84423.0,0.0825]
[1740600531281,0.05937054,84448.0,84425.0,0.00065198]
[1740600531395,0.05937054,84448.0,84423.0,0.0825]
[1740600531597,0.05937054,84448.0,84425.0,0.00065198]
[1740600531839,0.05910186,84446.0,84425.0,0.00065198]
[1740600532039,0.05910186,84446.0,84435.0,0.000847]
[1740600533444,0.05910186,84446.0,84425.0,0.00065198]
[1740600533658,0.05910186,84446.0,84423.0,0.0825]
[1740600534714,0.06010186,84446.0,84423.0,0.0825]
[1740600534944,0.05978108,84444.0,84414.0,0.3]
[1740600535589,0.05978108,84444.0,84415.0,0.01454085]
[1740600535790,0.05978108,84444.0,84414.0,0.3]
[1740600535791,0.05937054,84448.0,84422.0,0.0947121]
[1740600536011,0.05937054,84448.0,84414.0,0.3]
[1740600536171,0.05975432,84443.0,84415.0,0.00165813]
[1740600536381,0.0661602,84442.0,84415.0,0.00165813]
[1740600536607,0.0661602,84442.0,84414.0,0.3]
[1740600538968,0.0186029,84439.0,84414.0,0.3]
[1740600539344,0.06488477,84442.0,84423.0,0.0947121]
[1740600539544,0.00648848,84441.0,84423.0,0.0947121]
[1740600539750,0.06608821,84441.0,84423.0,0.0947121]
[1740600540670,0.05959973,84441.0,84423.0,0.0947121]
[1740600542084,0.01860165,84438.0,84424.0,0.00165794]
[1740600542293,0.05943487,84476.0,84435.0,0.0761]
[1740600542500,0.5,84453.0,84435.0,0.07651348]
[1740600542654,0.02381,84473.0,84435.0,0.00041348]
[1740600542861,0.02381,84473.0,84380.0,0.02]
[1740600542862,0.05966843,84463.0,84401.0,0.0811]
[1740600543057,0.11971487,84473.0,84391.0,0.0811]
[1740600543058,0.02381,84439.0,84391.0,0.0811]
[1740600543284,0.0828671,84437.0,84391.0,0.0811]
[1740600543458,0.13311487,84439.0,84376.0,0.19972777]
[1740600543459,0.05969066,84427.0,84376.0,0.19972777]
[1740600543657,0.02381,84426.0,84376.0,0.19972777]
[1740600543843,0.3,84420.0,84364.0,0.0488]
[1740600544050,0.3,84418.0,84364.0,0.0488]
[1740600544265,0.01454085,84416.0,84364.0,0.0001239]
[1740600544467,0.13971487,84419.0,84364.0,0.0001239]
[1740600544468,0.31454085,84414.0,84364.0,0.0001239]
[1740600545301,0.01454085,84411.0,84364.0,0.0001239]
[1740600545500,0.0594461,84407.0,84364.0,0.0001239]
[1740600545701,0.01454085,84404.0,84364.0,0.0001239]
[1740600545934,0.01454085,84407.0,84364.0,0.0001239]
[1740600546140,0.05909581,84404.0,84364.0,0.0001239]
[1740600546305,0.05909581,84404.0,84364.0,0.0009711]
[1740600547596,0.05975823,84402.0,84364.0,0.0009711]
[1740600547800,0.01454085,84399.0,84364.0,0.0009711]
[1740600548037,0.01454085,84397.0,84364.0,0.0009711]
[1740600548270,0.35907935,84395.0,84364.0,0.0009711]
[1740600549652,0.36507935,84395.0,84364.0,0.0009711]
[1740600550274,0.05912374,84385.0,84364.0,0.0009711]
[1740600550477,0.0594763,84379.0,84350.0,0.000847]
[1740600550770,0.3,84380.0,84350.0,0.000847]
[1740600550771,0.05919817,84374.0,84360.0,0.00097127]
[1740600551131,0.31454085,84372.0,84360.0,0.00097127]
[1740600551379,0.05966853,84371.0,84350.0,0.000847]
[1740600551512,0.05966853,84371.0,84350.0,0.00126081]
[1740600551919,0.05966853,84371.0,84338.0,0.0004235]
[1740600552122,0.33454085,84369.0,84338.0,0.0004235]
[1740600552317,0.01454085,84367.0,84338.0,0.0004235]
[1740600552877,0.05979386,84360.0,84329.0,0.0004235]
[1740600553129,0.01454085,84357.0,84329.0,0.0004235]
[1740600553333,0.01454085,84347.0,84301.0,0.0787]
[1740600553533,0.01454085,84345.0,84301.0,0.0787]
[1740600553838,0.11971487,84346.0,84311.0,0.37933119]
[1740600554115,0.05945893,84354.0,84311.0,0.37933119]
[1740600554322,0.01454085,84351.0,84302.0,0.39933119]
[1740600554525,0.01454085,84349.0,84302.0,0.39933119]
[1740600554726,0.01454085,84349.0,84310.0,0.00054797]
[1740600555713,0.02154085,84349.0,84310.0,0.00054797]
[1740600556939,0.01454085,84344.0,84310.0,0.00054797]
[1740600557286,0.01454085,84340.0,84310.0,0.00054797]
[1740600557745,0.01454085,84338.0,84310.0,0.00054797]
[1740600558676,0.01454085,84336.0,84310.0,0.00054797]
[1740600559063,0.004765,84337.0,84310.0,0.00054797]
[1740600559489,0.01454085,84336.0,84310.0,0.00054797]
[1740600559721,0.31454085,84334.0,84310.0,0.00054797]
[1740600559847,0.31454085,84332.0,84310.0,0.00054797]
[1740600560051,0.05915455,84322.0,84296.0,0.0004239]
[1740600560277,0.02,84323.0,84294.0,0.0004235]
[1740600560278,0.05938168,84317.0,84294.0,0.0004235]
[1740600560474,0.03804085,84318.0,84294.0,0.0004235]
[1740600560475,0.01454085,84314.0,84294.0,0.0004235]
[1740600560682,0.05954442,84309.0,84294.0,0.0004235]
[1740600561012,0.01454085,84305.0,84294.0,0.0004235]
[1740600561184,0.05956167,84303.0,84294.0,0.0004235]
[1740600561386,0.05982049,84301.0,84294.0,0.0004235]
[1740600561617,0.01454085,84298.0,84282.0,0.0004238]
[1740600561823,0.07416363,84298.0,84282.0,0.0004238]
[1740600561976,0.01454085,84296.0,84282.0,0.0004238]
[1740600562694,0.3,84294.0,84282.0,0.0004238]
[1740600562904,0.01454085,84291.0,84267.0,8e-05]
[1740600563098,0.01454085,84288.0,84267.0,0.00049455]
[1740600563294,0.31454085,84286.0,84267.0,0.00049455]
[1740600563494,0.0235,84283.0,84267.0,0.00049455]
[1740600563695,0.03317952,84282.0,84244.0,0.0004236]
[1740600563895,0.01454085,84280.0,84244.0,0.0004236]
[1740600564497,0.03454085,84280.0,84244.0,0.0004236]
[1740600564697,0.01454085,84278.0,84234.0,0.3659495]
[1740600564899,0.01454085,84276.0,84234.0,0.3659495]
[1740600565085,0.01864049,84272.0,84234.0,0.3659495]
[1740600565451,0.0134,84277.0,84234.0,0.3659495]
[1740600565663,0.01454085,84276.0,84234.0,0.3659495]
[1740600565841,0.01454085,84274.0,84234.0,0.3659495]
[1740600566218,0.01454085,84275.0,84235.0,0.02]
[1740600567254,0.11971487,84275.0,84244.0,0.3]
[1740600567652,0.11971487,84275.0,84193.0,0.02]
[1740600567653,0.0489,84274.0,84217.0,0.0134]
[1740600567862,0.0489,84274.0,84222.0,0.0818]
[1740600567863,0.02,84272.0,84222.0,0.0818]
[1740600568035,0.13657636,84273.0,84222.0,0.0818]
[1740600568036,0.11971487,84271.0,84222.0,0.0818]
[1740600568393,0.01864221,84261.0,84222.0,0.0818]
[1740600568626,0.11971487,84260.0,84222.0,0.0818]
[1740600568762,0.11971487,84259.0,84222.0,0.0818]
[1740600568963,0.11971487,84259.0,84186.0,0.53025987]
[1740600568964,0.05952765,84249.0,84193.0,0.02]
[1740600569150,0.35992955,84247.0,84195.0,0.02]
[1740600569593,0.01454085,84244.0,84195.0,0.02]
[1740600569796,0.01454085,84237.0,84193.0,0.02]
[1740600569979,0.01454085,84237.0,84195.0,0.02]
[1740600570553,0.01454085,84235.0,84195.0,0.02]
[1740600570714,0.01533172,84234.0,84195.0,0.02]
[1740600570904,0.01533172,84234.0,84210.0,0.0787]
[1740600571105,0.01533172,84234.0,84225.0,0.0004233]
[1740600571305,0.01864787,84228.0,84225.0,0.0004233]
[1740600572295,0.01864787,84228.0,84227.0,0.3]
[1740600572744,0.02364787,84228.0,84227.0,0.3]
[1740600573114,0.01864787,84228.0,84227.0,0.3]
[1740600573315,0.02164787,84228.0,84227.0,0.3]
[1740600573517,0.02164787,84228.0,84225.0,0.0004233]
[1740600573717,0.02164787,84228.0,84227.0,0.3]
[1740600574628,0.01864787,84228.0,84225.0,0.0004233]
[1740600574812,0.02064787,84228.0,84225.0,0.0004233]
[1740600575017,0.01864787,84228.0,84225.0,0.0004233]
[1740600575465,0.02264787,84228.0,84225.0,0.0004233]
[1740600575624,0.01864787,84228.0,84225.0,0.0004233]
[1740600576099,0.02364787,84228.0,84225.0,0.0004233]
[1740600576500,0.02964787,84228.0,84225.0,0.0004233]
[1740600576700,0.011,84228.0,84225.0,0.0004233]
[1740600577958,0.00041218,84237.0,84225.0,0.0004233]
[1740600578122,0.01201271,84236.0,84225.0,0.0004233]
[1740600578343,0.006,84228.0,84225.0,0.0004233]
[1740600578562,0.01201271,84236.0,84225.0,0.0004233]
[1740600578763,0.005,84228.0,84225.0,0.0004233]
[1740600579248,0.11971487,84235.0,84203.0,0.0453]
[1740600579417,0.01321398,84234.0,84203.0,0.0453]
[1740600579834,0.01864744,84229.0,84204.0,0.3]
[1740600580039,0.01864744,84229.0,84206.0,0.02]
[1740600581293,0.01864744,84229.0,84210.0,0.0987]
[1740600581463,0.01786094,84229.0,84210.0,0.0787]
[1740600581664,0.004,84228.0,84210.0,0.0987]
[1740600582017,0.01786094,84229.0,84210.0,0.0987]
[1740600582437,0.02486094,84229.0,84210.0,0.0987]
[1740600582674,0.01786094,84229.0,84210.0,0.0987]
[1740600582875,0.004,84228.0,84210.0,0.0987]
[1740600583616,0.004,84228.0,84210.0,0.0991238]
[1740600583835,0.00183907,84228.0,84210.0,0.0991238]
[1740600584580,0.00183907,84228.0,84210.0,0.0791238]
[1740600584838,0.01786094,84229.0,84210.0,0.0791238]
[1740600585252,0.004,84228.0,84210.0,0.0004238]
[1740600585470,0.01786094,84229.0,84210.0,0.0004238]
[1740600585868,0.005,84228.0,84210.0,0.0004238]
[1740600586049,0.01181206,84228.0,84210.0,0.0004238]
[1740600586412,0.01781206,84228.0,84210.0,0.0004238]
[1740600586747,0.07773514,84228.0,84210.0,0.0004238]
[1740600586955,0.00777351,84227.0,84210.0,0.0004238]
[1740600587505,0.05970486,84226.0,84210.0,0.0004238]
[1740600587708,0.12748838,84227.0,84200.0,0.0001]
[1740600587709,0.01454085,84223.0,84200.0,0.0001]
[1740600587904,0.05940828,84217.0,84200.0,0.0001]
[1740600588047,0.05966273,84215.0,84200.0,0.0001]
[1740600588251,0.01181206,84217.0,84179.0,0.0776]
[1740600588252,0.05990312,84211.0,84179.0,0.0776]
[1740600588494,0.18813384,84214.0,84162.0,0.0776]
[1740600588495,0.05978975,84207.0,84162.0,0.0776]
[1740600588808,0.01454085,84205.0,84162.0,0.0776]
[1740600589007,0.01454085,84203.0,84162.0,0.0976]
[1740600589166,0.01454085,84201.0,84162.0,0.3976]
[1740600589393,0.01454085,84199.0,84162.0,0.0776]
[1740600589597,0.01865512,84192.0,84162.0,0.07772431]
[1740600589806,0.15018205,84192.0,84162.0,0.07772431]
[1740600590012,0.15018205,84192.0,84162.0,0.09772431]
[1740600590195,0.15018205,84192.0,84162.0,0.07772431]
[1740600590394,0.01501821,84191.0,84162.0,0.09772431]
[1740600590968,0.01454085,84190.0,84162.0,0.00012431]
[1740600591247,0.01454085,84188.0,84162.0,0.00012431]
[1740600591454,0.11971487,84187.0,84162.0,0.00012431]
[1740600591662,0.01454085,84186.0,84162.0,0.00012431]
[1740600591868,0.11971487,84187.0,84159.0,6.624e-05]
[1740600591869,0.01454085,84184.0,84159.0,6.624e-05]
[1740600592042,0.01454085,84180.0,84159.0,0.00019058]
[1740600592245,0.14606778,84180.0,84159.0,0.00019058]
[1740600593298,0.13152693,84180.0,84159.0,0.00019058]
[1740600593419,0.13152693,84180.0,84162.0,0.38007008]
[1740600593625,0.14654543,84180.0,84159.0,0.00019058]
[1740600593867,0.05994941,84179.0,84159.0,0.00019058]
[1740600594029,0.05940479,84176.0,84159.0,0.00019058]
[1740600594230,0.01454085,84173.0,84159.0,0.00019058]
[1740600594472,0.01454085,84167.0,84159.0,0.00019058]
[1740600594725,0.05947705,84165.0,84135.0,0.0786]
[1740600594929,0.17919192,84165.0,84142.0,0.3]
[1740600595562,0.01181206,84167.0,84142.0,0.3]
[1740600595563,0.05969381,84166.0,84151.0,0.02]
[1740600595767,0.06892413,84166.0,84153.0,0.3]
[1740600596466,0.01181206,84167.0,84160.0,0.3]
[1740600597195,0.01181206,84167.0,84166.0,0.1006]
[1740600597416,0.01181206,84167.0,84166.0,0.61486862]
[1740600597552,0.01181206,84182.0,84181.0,0.4006]
[1740600597758,0.01181206,84182.0,84181.0,0.41514085]
[1740600598114,0.5,84197.0,84196.0,0.02]
[1740600598294,0.5,84197.0,84196.0,0.0334]
[1740600598732,0.5,84197.0,84196.0,0.60912777]
[1740600599089,0.01181206,84201.0,84200.0,0.02]
[1740600599285,0.01181206,84211.0,84201.0,0.01454085]
[1740600599467,0.01181206,84211.0,84210.0,0.396]
[1740600599674,0.01181206,84220.0,84211.0,0.076]
[1740600599893,0.01181206,84220.0,84219.0,0.396]
[1740600600117,0.01181206,84220.0,84219.0,0.3]
[1740600600325,0.01181206,84220.0,84209.0,0.0776]
[1740600600515,0.01181206,84220.0,84210.0,0.02]
[1740600600739,0.01181206,84220.0,84209.0,0.0976]
[1740600601057,0.01181206,84220.0,84219.0,0.11499439]
[1740600601355,0.0009715,84227.0,84226.0,0.02]
[1740600601654,0.01278356,84227.0,84226.0,0.098]
[1740600601797,0.01278356,84227.0,84226.0,0.078]
[1740600601998,0.03142853,84227.0,84226.0,0.098]
[1740600602694,0.03142853,84227.0,84226.0,0.09966189]
[1740600602900,0.01278356,84227.0,84226.0,0.098]
[1740600603310,0.0009715,84227.0,84226.0,0.098]
[1740600603721,0.01278356,84227.0,84226.0,0.098]
[1740600603852,0.01278356,84227.0,84226.0,0.078]
[1740600604054,0.01278356,84227.0,84226.0,0.098]
[1740600604260,0.01278356,84227.0,84226.0,0.078]
[1740600604686,0.01278356,84227.0,84226.0,0.098]
[1740600604887,0.01112345,84227.0,84226.0,0.098]
[1740600605514,0.01112345,84227.0,84226.0,0.078]
[1740600605960,0.01112345,84227.0,84226.0,0.098]
[1740600606202,0.01112345,84227.0,84226.0,0.078]
[1740600606531,0.01112345,84227.0,84214.0,0.0779]
[1740600606717,0.01112345,84227.0,84202.0,0.083]
[1740600607111,0.01112345,84227.0,84191.0,0.083]
[1740600607112,0.0592263,84224.0,84191.0,0.083]
[1740600607323,0.01454085,84219.0,84191.0,0.083]
[1740600607569,0.05926151,84218.0,84191.0,0.083]
[1740600607774,0.05940828,84217.0,84191.0,0.083]
[1740600608509,0.01454085,84216.0,84170.0,0.0496]
[1740600608633,0.01454085,84214.0,84178.0,0.02]
[1740600608836,0.03998679,84213.0,84178.0,0.02]
[1740600609039,0.05979484,84210.0,84174.0,0.0806]
[1740600609241,0.01454085,84207.0,84178.0,0.02]
[1740600609440,0.05979025,84204.0,84177.0,0.02]
[1740600609810,0.05979025,84204.0,84174.0,0.0806]
[1740600609811,0.3,84202.0,84174.0,0.0806]
[1740600610040,0.01454085,84205.0,84159.0,0.0004242]
[1740600610041,0.31454085,84200.0,84160.0,0.0825]
[1740600610244,0.07369833,84197.0,84160.0,0.0825]
[1740600610456,0.05942004,84194.0,84160.0,0.0825]
[1740600610975,0.3,84195.0,84159.0,0.0004242]
[1740600610976,0.01454085,84191.0,84159.0,0.0004242]
[1740600611178,0.01454085,84187.0,84159.0,0.0004242]
[1740600611361,0.05947581,84184.0,84159.0,0.0005479]
[1740600611684,0.07449933,84183.0,84159.0,0.0005479]
[1740600613147,0.05912277,84180.0,84136.0,0.0815]
[1740600613513,0.02,84172.0,84124.0,0.02]
[1740600613732,0.01112345,84172.0,84124.0,0.02]
[1740600613932,0.01112345,84172.0,84122.0,0.0031897]
[1740600613933,0.01454085,84160.0,84122.0,0.0031897]
[1740600614105,0.03454085,84152.0,84122.0,0.0031897]
[1740600614346,0.01454085,84152.0,84122.0,0.0031897]
[1740600614555,0.16481487,84159.0,84122.0,0.0031897]
[1740600614730,0.004775,84151.0,84122.0,0.0031897]
[1740600614930,0.01589845,84151.0,84122.0,0.0031897]
[1740600615312,0.01589845,84151.0,84122.0,0.00360359]
[1740600615496,0.01112345,84151.0,84122.0,0.00360359]
[1740600616019,0.01112345,84151.0,84124.0,0.3]
[1740600616237,0.01112345,84151.0,84132.0,0.02]
[1740600616831,0.01112345,84151.0,84134.0,0.02]
[1740600617593,0.01112345,84151.0,84126.0,0.0803]
[1740600617795,0.01112345,84151.0,84128.0,0.02]
[1740600618373,0.05967816,84165.0,84128.0,0.02]
[1740600618577,0.0596159,84163.0,84128.0,0.02]
[1740600618773,0.0596159,84163.0,84132.0,0.02]
[1740600619101,0.0596159,84163.0,84134.0,0.02]
[1740600619393,0.01866263,84156.0,84140.0,0.02]
[1740600619744,0.01866263,84156.0,84139.0,0.3]
[1740600619947,0.00784003,84155.0,84139.0,0.3]
[1740600620352,0.00784003,84155.0,84135.0,0.02]
[1740600621527,0.00784003,84155.0,84134.0,0.0004242]
[1740600621685,0.01866263,84156.0,84134.0,0.0004242]
[1740600621885,0.1383775,84156.0,84134.0,0.0004242]
[1740600622316,0.01454085,84155.0,84134.0,0.0004242]
[1740600622692,0.01454085,84153.0,84134.0,0.0004242]
[1740600623011,0.11971487,84152.0,84134.0,0.0004242]
[1740600623212,0.01383775,84151.0,84134.0,0.0004242]
[1740600623789,0.0136508,84151.0,84134.0,0.0004242]
[1740600623936,0.01866409,84147.0,84135.0,0.0772]
[1740600624147,0.01866409,84147.0,84146.0,0.11507172]
[1740600624324,0.0822,84203.0,84146.0,0.11507172]
[1740600624325,0.05940991,84201.0,84157.0,0.02]
[1740600624527,0.05986369,84196.0,84168.0,0.02]
[1740600624725,0.00956587,84195.0,84176.0,0.02]
[1740600624927,0.00956587,84195.0,84170.0,0.3]
[1740600624928,0.05991956,84212.0,84185.0,0.0814]
[1740600625130,0.05918573,84214.0,84185.0,0.3814]
[1740600625533,0.05930998,84214.0,84185.0,0.3814]
[1740600625942,0.05904295,84213.0,84185.0,0.3814]
[1740600626177,0.05904295,84213.0,84185.0,0.0814]
[1740600626381,0.05971233,84211.0,84185.0,0.0814]
[1740600626917,0.01865239,84205.0,84185.0,0.0814]
[1740600627131,0.01865239,84205.0,84191.0,0.02]
[1740600627378,0.05943347,84204.0,84191.0,0.02]
[1740600628323,0.05904295,84213.0,84186.0,0.3]
[1740600628542,0.05904295,84213.0,84185.0,0.0814]
[1740600628809,0.05904295,84213.0,84191.0,0.02]
[1740600629057,0.05904295,84213.0,84186.0,0.3]
[1740600629259,0.05904295,84213.0,84191.0,0.02]
[1740600629455,0.00012425,84214.0,84199.0,0.02]
[1740600629717,0.06499998,84213.0,84199.0,0.02]
[1740600630164,0.06499998,84213.0,84188.0,0.3]
[1740600630386,0.06499998,84213.0,84199.0,0.02]
[1740600631104,0.07768415,84210.0,84199.0,0.02]
[1740600631718,0.01865045,84210.0,84199.0,0.02]
[1740600631914,0.01550445,84209.0,84200.0,0.0461]
[1740600632228,0.01550445,84209.0,84208.0,0.03454085]
[1740600632433,0.00012425,84214.0,84213.0,0.02]
[1740600632634,0.00012425,84214.0,84213.0,0.51972777]
[1740600633056,0.00012425,84214.0,84213.0,0.53426862]
[1740600633269,0.059347,84263.0,84226.0,0.03454085]
[1740600633472,0.05941297,84297.0,84248.0,0.02]
[1740600633653,0.05932901,84288.0,84251.0,0.3488]
[1740600634031,0.00041463,84263.0,84255.0,0.02]
[1740600634150,0.00041463,84263.0,84261.0,0.02]
[1740600634360,0.00041463,84263.0,84262.0,0.02]
[1740600634988,0.00041463,84263.0,84262.0,0.53426862]
[1740600635189,0.5,84278.0,84277.0,0.099]
[1740600635394,0.0130447,84278.0,84277.0,0.099]
[1740600635834,0.00012433,84278.0,84277.0,0.099]
[1740600636216,0.00012433,84278.0,84277.0,0.64472777]
[1740600637074,0.00012433,84278.0,84277.0,0.64462777]
[1740600637275,0.00012433,84278.0,84277.0,0.4449]
[1740600637422,0.00012433,84278.0,84277.0,0.425]
[1740600637844,0.00012433,84278.0,84277.0,0.379]
[1740600638087,0.05907599,84277.0,84264.0,0.0796]
[1740600638268,0.00012433,84278.0,84269.0,0.0199]
[1740600638269,0.01258889,84278.0,84269.0,0.0199]
[1740600638506,0.01246713,84276.0,84265.0,0.0199]
[1740600638684,0.05938332,84276.0,84269.0,0.0199]
[1740600638878,0.01246713,84275.0,84269.0,0.0199]
[1740600639428,0.07173984,84275.0,84264.0,0.0796]
[1740600639642,0.05907599,84277.0,84264.0,0.0796]
[1740600639909,0.05903475,84273.0,84264.0,0.0796]
[1740600640114,0.05907599,84277.0,84264.0,0.0796]
[1740600640594,0.05927271,84275.0,84257.0,0.049]
[1740600640800,0.3670697,84274.0,84251.0,0.0827]
[1740600641004,0.37740065,84274.0,84251.0,0.0827]
[1740600641222,0.37740065,84274.0,84250.0,0.0199]
[1740600641419,0.05980528,84272.0,84250.0,0.0199]
[1740600641991,0.05924447,84270.0,84250.0,0.0199]
[1740600642374,0.05913081,84268.0,84250.0,0.0199]
[1740600642788,0.35911149,84269.0,84250.0,0.0199]
[1740600642969,0.06988539,84267.0,84250.0,0.0199]
[1740600643170,0.08123193,84267.0,84250.0,0.0199]
[1740600643324,0.05989481,84265.0,84249.0,0.0199]
[1740600643530,0.04653345,84264.0,84250.0,0.0199]
[1740600643770,0.01021689,84266.0,84261.0,0.0199]
[1740600643922,0.00853392,84263.0,84262.0,0.0686]
[1740600644127,0.06003907,84278.0,84264.0,0.0776]
[1740600644369,0.00012433,84278.0,84266.0,0.0199]
[1740600644524,0.00711916,84277.0,84266.0,0.0199]
[1740600644724,0.00012433,84278.0,84266.0,0.0199]
[1740600644945,0.00012433,84278.0,84264.0,0.0776]
[1740600644946,0.06601242,84278.0,84264.0,0.0776]
[1740600645178,0.1152331,84277.0,84262.0,0.0487]
[1740600645502,0.05927271,84275.0,84262.0,0.0487]
[1740600645639,0.05927271,84275.0,84256.0,0.0199]
[1740600646001,0.05961075,84271.0,84246.0,0.046]
[1740600646184,0.05909677,84264.0,84227.0,0.046]
[1740600646360,0.01454085,84261.0,84227.0,0.046]
[1740600646561,0.05952819,84261.0,84227.0,0.046]
[1740600646767,0.01454085,84260.0,84227.0,0.046]
[1740600646959,0.05907026,84257.0,84227.0,0.046]
[1740600647526,0.0596241,84255.0,84227.0,0.046]
[1740600647912,0.05974274,84249.0,84222.0,0.0199]
[1740600648416,0.05972087,84247.0,84222.0,0.0199]
[1740600648655,0.05972087,84247.0,84213.0,0.28072777]
[1740600648656,0.00702679,84248.0,84246.0,0.0199]
[1740600648841,0.0784749,84250.0,84242.0,0.0199]
[1740600649043,0.00584799,84247.0,84238.0,0.0199]
[1740600649252,0.00584799,84247.0,84229.0,0.19972777]
[1740600649253,0.05975984,84246.0,84229.0,0.19972777]
[1740600649377,0.08135873,84246.0,84233.0,0.0199]
[1740600649575,0.05937352,84244.0,84216.0,0.0774]
[1740600649813,0.05920758,84240.0,84210.0,0.0004239]
[1740600650318,0.05974792,84238.0,84213.0,0.0199]
[1740600650634,0.05987309,84232.0,84213.0,0.0199]
[1740600651137,0.00564552,84231.0,84222.0,0.0199]
[1740600651424,0.06189383,84231.0,84230.0,0.0199]
[1740600651592,0.06466755,84231.0,84228.0,0.0199]
[1740600651889,0.12406196,84231.0,84216.0,0.19972777]
[1740600652049,0.12406196,84231.0,84230.0,0.0199]
[1740600652228,0.02159889,84230.0,84216.0,0.19972777]
[1740600652449,0.05923894,84229.0,84216.0,0.19972777]
[1740600652656,0.08114777,84230.0,84216.0,0.19972777]